[Event "*** Titled Tuesday Blitz"]
[Site "Chess.com"]
[Date "2020.02.04"]
[Round "4"]
[White "tunadrol"]
[Black "Abund"]
[Result "1/2-1/2"]
[WhiteElo "2580"]
[BlackElo "2754"]
[TimeControl "180+2"]
[EndTime "9:51:09 PST"]
[Termination "Game drawn by repetition"]

1. e4 {[%clk 0:03:01.9]} 1... c5 {[%clk 0:02:59.5]} 2. Nf3 {[%clk 0:03:02.3]}
2... Nc6 {[%clk 0:03:00.7]} 3. d4 {[%clk 0:03:03.6]} 3... cxd4 {[%clk
0:03:01.9]} 4. Nxd4 {[%clk 0:03:03.9]} 4... Nf6 {[%clk 0:03:03]} 5. f3 {[%clk
0:03:02.5]} 5... e5 {[%clk 0:02:55.1]} 6. Nb5 {[%clk 0:02:59.7]} 6... d6 {[%clk
0:02:26.9]} 7. c4 {[%clk 0:02:59.7]} 7... Be7 {[%clk 0:02:26.5]} 8. Be3 {[%clk
0:02:58.6]} 8... O-O {[%clk 0:02:26.4]} 9. Be2 {[%clk 0:02:59.2]} 9... Be6
{[%clk 0:02:23]} 10. O-O {[%clk 0:02:59.7]} 10... a6 {[%clk 0:02:22.1]} 11. N5a3
{[%clk 0:03:00]} 11... Nh5 {[%clk 0:02:07.1]} 12. Nc3 {[%clk 0:02:28.5]} 12...
Bg5 {[%clk 0:02:06.2]} 13. Bf2 {[%clk 0:02:27.9]} 13... Nd4 {[%clk 0:01:45.3]}
14. Bxd4 {[%clk 0:01:55.9]} 14... exd4 {[%clk 0:01:46.3]} 15. Qxd4 {[%clk
0:01:56.8]} 15... Bf4 {[%clk 0:01:35.1]} 16. Qf2 {[%clk 0:01:48.3]} 16... Qg5
{[%clk 0:01:32.2]} 17. Nc2 {[%clk 0:01:48.5]} 17... Ng3 {[%clk 0:01:22.3]} 18.
Rfd1 {[%clk 0:00:41.6]} 18... Qh4 {[%clk 0:01:22.1]} 19. Bd3 {[%clk 0:00:10]}
19... Rac8 {[%clk 0:00:57.4]} 20. Re1 {[%clk 0:00:07.3]} 20... Rc5 {[%clk
0:00:53.8]} 21. Nd5 {[%clk 0:00:04.6]} 21... Bxd5 {[%clk 0:00:41]} 22. exd5
{[%clk 0:00:06.5]} 22... b5 {[%clk 0:00:37.1]} 23. b3 {[%clk 0:00:07.6]} 23...
bxc4 {[%clk 0:00:33.9]} 24. Bxc4 {[%clk 0:00:09.5]} 24... g6 {[%clk 0:00:28.3]}
25. Rad1 {[%clk 0:00:07.5]} 25... Rcc8 {[%clk 0:00:17.8]} 26. Rd4 {[%clk
0:00:05.6]} 26... Ne2+ {[%clk 0:00:13.6]} 27. Rxe2 {[%clk 0:00:06.8]} 27...
Qxh2+ {[%clk 0:00:14.6]} 28. Kf1 {[%clk 0:00:07.1]} 28... Rce8 {[%clk 0:00:16]}
29. Qg1 {[%clk 0:00:05.4]} 29... Qg3 {[%clk 0:00:14.9]} 30. Qf2 {[%clk 0:00:06]}
30... Qh2 {[%clk 0:00:15.8]} 31. Qg1 {[%clk 0:00:07.3]} 31... Qg3 {[%clk
0:00:17.1]} 32. Qf2 {[%clk 0:00:08]} 32... Qh2 {[%clk 0:00:18.3]} 1/2-1/2

[Event "*** Titled Tuesday Blitz"]
[Site "Chess.com"]
[Date "2020.02.04"]
[Round "4"]
[White "Hadza_3"]
[Black "SONOFHOLYGOD"]
[Result "0-1"]
[WhiteElo "2400"]
[BlackElo "2604"]
[TimeControl "180+2"]
[EndTime "9:51:09 PST"]
[Termination "SONOFHOLYGOD won by resignation"]

1. e4 {[%clk 0:03:01.9]} 1... c5 {[%clk 0:02:59.3]} 2. Nc3 {[%clk 0:03:02.7]}
2... e6 {[%clk 0:02:56]} 3. g3 {[%clk 0:03:01.9]} 3... g6 {[%clk 0:02:56.3]} 4.
Bg2 {[%clk 0:03:02.6]} 4... Bg7 {[%clk 0:02:57.4]} 5. d3 {[%clk 0:03:04.5]} 5...
Nc6 {[%clk 0:02:58.8]} 6. h4 {[%clk 0:03:03.3]} 6... h5 {[%clk 0:02:58.8]} 7.
Nge2 {[%clk 0:03:01.5]} 7... Nge7 {[%clk 0:02:59.4]} 8. O-O {[%clk 0:03:02.1]}
8... O-O {[%clk 0:03:00]} 9. Nf4 {[%clk 0:02:59.6]} 9... Nd4 {[%clk 0:03:00.3]}
10. Nce2 {[%clk 0:02:59]} 10... Nec6 {[%clk 0:02:54.4]} 11. c3 {[%clk 0:02:55]}
11... Nxe2+ {[%clk 0:02:54.6]} 12. Qxe2 {[%clk 0:02:56.9]} 12... d6 {[%clk
0:02:53.4]} 13. Be3 {[%clk 0:02:50]} 13... Bd7 {[%clk 0:02:54]} 14. Bh3 {[%clk
0:02:36.9]} 14... e5 {[%clk 0:02:50.8]} 15. Bxd7 {[%clk 0:02:28.2]} 15... exf4
{[%clk 0:02:49.8]} 16. Bxc6 {[%clk 0:02:25.1]} 16... fxe3 {[%clk 0:02:51.1]} 17.
Bxb7 {[%clk 0:02:23.9]} 17... exf2+ {[%clk 0:02:52.4]} 18. Rxf2 {[%clk
0:02:24.5]} 18... Rb8 {[%clk 0:02:53.3]} 19. Bd5 {[%clk 0:02:25.5]} 19... Be5
{[%clk 0:02:45.5]} 20. Kg2 {[%clk 0:02:17.6]} 20... Kg7 {[%clk 0:02:46]} 21.
Raf1 {[%clk 0:02:15.5]} 21... f6 {[%clk 0:02:43.5]} 22. Qe3 {[%clk 0:02:16.7]}
22... Qb6 {[%clk 0:02:38]} 23. Rd1 {[%clk 0:02:16]} 23... f5 {[%clk 0:02:35.9]}
24. exf5 {[%clk 0:02:15.1]} 24... Qd8 {[%clk 0:02:27.7]} 25. Rdf1 {[%clk
0:02:11.2]} 25... Rxf5 {[%clk 0:02:04]} 26. Rxf5 {[%clk 0:02:10.3]} 26... gxf5
{[%clk 0:02:05.3]} 27. Rxf5 {[%clk 0:01:58.3]} 27... Rxb2+ {[%clk 0:02:05]} 28.
Kh3 {[%clk 0:01:51.7]} 28... Kg6 {[%clk 0:00:17.5]} 29. Qf3 {[%clk 0:01:40.9]}
29... Qxh4+ {[%clk 0:00:15.8]} 0-1

[Event "*** Titled Tuesday Blitz"]
[Site "Chess.com"]
[Date "2020.02.04"]
[Round "4"]
[White "Nikolakis2014"]
[Black "Quiet_Desperation"]
[Result "1-0"]
[WhiteElo "2706"]
[BlackElo "2436"]
[TimeControl "180+2"]
[EndTime "9:51:13 PST"]
[Termination "Nikolakis2014 won by resignation"]

1. Nf3 {[%clk 0:03:01.9]} 1... Nf6 {[%clk 0:03:00]} 2. c4 {[%clk 0:03:02.1]}
2... e6 {[%clk 0:02:58.3]} 3. g3 {[%clk 0:03:02.9]} 3... d5 {[%clk 0:02:57.6]}
4. Bg2 {[%clk 0:03:03.8]} 4... Be7 {[%clk 0:02:58.7]} 5. d4 {[%clk 0:03:04.2]}
5... O-O {[%clk 0:02:59.7]} 6. O-O {[%clk 0:03:05.2]} 6... c6 {[%clk 0:03:01]}
7. Qc2 {[%clk 0:03:05.3]} 7... b6 {[%clk 0:03:02]} 8. Nbd2 {[%clk 0:03:06.2]}
8... Bb7 {[%clk 0:03:03.2]} 9. b3 {[%clk 0:03:06.9]} 9... Nbd7 {[%clk
0:03:03.7]} 10. Bb2 {[%clk 0:03:08]} 10... Rc8 {[%clk 0:03:04.5]} 11. e4 {[%clk
0:03:08.8]} 11... dxc4 {[%clk 0:02:57.4]} 12. bxc4 {[%clk 0:03:01.2]} 12... Re8
{[%clk 0:02:12.7]} 13. e5 {[%clk 0:02:59.1]} 13... Nh5 {[%clk 0:02:13.1]} 14.
Ne4 {[%clk 0:02:45.3]} 14... c5 {[%clk 0:02:01.8]} 15. Rad1 {[%clk 0:02:43.9]}
15... cxd4 {[%clk 0:01:55.2]} 16. Rxd4 {[%clk 0:02:43.1]} 16... Qc7 {[%clk
0:01:53.1]} 17. Nd6 {[%clk 0:02:34.3]} 17... Bxd6 {[%clk 0:01:50.5]} 18. exd6
{[%clk 0:02:32.8]} 18... Qd8 {[%clk 0:01:47]} 19. Rfd1 {[%clk 0:02:21.6]} 19...
e5 {[%clk 0:01:32]} 20. Rh4 {[%clk 0:02:15.6]} 20... g6 {[%clk 0:01:26.6]} 21.
Rxh5 {[%clk 0:02:11.6]} 21... gxh5 {[%clk 0:01:27]} 22. Qf5 {[%clk 0:02:12.3]}
22... h6 {[%clk 0:00:52.8]} 23. Nxe5 {[%clk 0:01:41.7]} 23... Nxe5 {[%clk
0:00:47.6]} 24. Bxb7 {[%clk 0:01:41.1]} 24... Rc5 {[%clk 0:00:48]} 25. Bd5
{[%clk 0:01:39.7]} 25... Qg5 {[%clk 0:00:29.6]} 26. d7 {[%clk 0:01:28.8]} 26...
Rd8 {[%clk 0:00:13.9]} 27. Qxe5 {[%clk 0:01:27.9]} 27... Qxe5 {[%clk 0:00:14.6]}
28. Bxe5 {[%clk 0:01:28.4]} 28... Rxd7 {[%clk 0:00:16.1]} 29. Rd4 {[%clk
0:01:27.7]} 29... b5 {[%clk 0:00:15.2]} 30. Be6 {[%clk 0:00:40.2]} 30... Rxd4
{[%clk 0:00:05.6]} 31. Bxd4 {[%clk 0:00:40.8]} 31... Rc6 {[%clk 0:00:06.2]} 32.
Bd5 {[%clk 0:00:41.3]} 32... Rd6 {[%clk 0:00:07.2]} 33. Bxa7 {[%clk 0:00:37.7]}
33... bxc4 {[%clk 0:00:07.7]} 34. Bxc4 {[%clk 0:00:38.9]} 34... Rd1+ {[%clk
0:00:08.8]} 35. Kg2 {[%clk 0:00:39.2]} 35... Rc1 {[%clk 0:00:09.5]} 36. Bb3
{[%clk 0:00:40.1]} 36... Rc7 {[%clk 0:00:10.3]} 37. Be3 {[%clk 0:00:41.4]} 1-0

[Event "*** Titled Tuesday Blitz"]
[Site "Chess.com"]
[Date "2020.02.04"]
[Round "4"]
[White "riconaipe"]
[Black "Gordima"]
[Result "0-1"]
[WhiteElo "2531"]
[BlackElo "2785"]
[TimeControl "180+2"]
[EndTime "9:51:15 PST"]
[Termination "Gordima won by resignation"]

1. d4 {[%clk 0:03:01.9]} 1... d5 {[%clk 0:02:59.2]} 2. g3 {[%clk 0:02:59.9]}
2... Bf5 {[%clk 0:02:59.4]} 3. Bg2 {[%clk 0:03:00.2]} 3... e6 {[%clk 0:03:00.7]}
4. Nf3 {[%clk 0:03:01.3]} 4... h6 {[%clk 0:03:00.9]} 5. O-O {[%clk 0:03:02.3]}
5... c6 {[%clk 0:03:02.4]} 6. b3 {[%clk 0:03:03]} 6... Nf6 {[%clk 0:03:03.6]} 7.
Bb2 {[%clk 0:03:04.5]} 7... Be7 {[%clk 0:03:04.6]} 8. c4 {[%clk 0:03:06]} 8...
O-O {[%clk 0:03:05.6]} 9. Nbd2 {[%clk 0:03:03.3]} 9... Nbd7 {[%clk 0:03:05.5]}
10. Rc1 {[%clk 0:03:03]} 10... a5 {[%clk 0:03:05.9]} 11. c5 {[%clk 0:03:03.3]}
11... Bh7 {[%clk 0:03:01.2]} 12. a3 {[%clk 0:03:02.6]} 12... Ne4 {[%clk
0:03:01.2]} 13. Nxe4 {[%clk 0:03:03.3]} 13... Bxe4 {[%clk 0:02:59.4]} 14. Qd2
{[%clk 0:02:58]} 14... Bf6 {[%clk 0:02:49.3]} 15. h4 {[%clk 0:02:55.2]} 15...
Qe7 {[%clk 0:02:45.6]} 16. Ne5 {[%clk 0:02:53.1]} 16... Bxe5 {[%clk 0:02:40.7]}
17. Bxe4 {[%clk 0:02:48.8]} 17... Bxg3 {[%clk 0:02:40.1]} 18. fxg3 {[%clk
0:02:46.7]} 18... dxe4 {[%clk 0:02:40.7]} 19. Kh2 {[%clk 0:02:27.1]} 19... f5
{[%clk 0:02:41.3]} 20. Kh3 {[%clk 0:02:28]} 20... Nf6 {[%clk 0:02:42.4]} 21. Qf4
{[%clk 0:02:19.3]} 21... Nd5 {[%clk 0:02:42]} 22. Qe5 {[%clk 0:02:20.2]} 22...
Qf6 {[%clk 0:02:36.2]} 23. Qxf6 {[%clk 0:02:12.2]} 23... gxf6 {[%clk 0:02:38.1]}
24. Rcd1 {[%clk 0:02:09.6]} 24... h5 {[%clk 0:02:38.6]} 25. Bc1 {[%clk
0:02:10.6]} 25... Kf7 {[%clk 0:02:38.9]} 26. Bf4 {[%clk 0:02:04.2]} 26... Rg8
{[%clk 0:02:37.4]} 27. Bd6 {[%clk 0:02:04.9]} 27... Ne3 {[%clk 0:02:37.3]} 28.
Rb1 {[%clk 0:02:01.8]} 28... Nxf1 {[%clk 0:02:38]} 29. Rxf1 {[%clk 0:02:03.5]}
29... Ke8 {[%clk 0:02:35.6]} 30. e3 {[%clk 0:02:00.2]} 30... Kd7 {[%clk
0:02:36]} 31. Rb1 {[%clk 0:01:59.2]} 31... Rg4 {[%clk 0:02:32.3]} 32. Rf1 {[%clk
0:01:58.5]} 32... Rag8 {[%clk 0:02:32.1]} 33. Rg1 {[%clk 0:01:59.6]} 33... Re8
{[%clk 0:02:04.7]} 34. Rd1 {[%clk 0:01:57.7]} 34... Kc8 {[%clk 0:01:57.6]} 35.
Rf1 {[%clk 0:01:55.6]} 35... Rg6 {[%clk 0:01:56]} 36. Rf2 {[%clk 0:01:53.9]}
36... Rd8 {[%clk 0:01:57.2]} 37. Bf4 {[%clk 0:01:53]} 37... Rd5 {[%clk
0:01:57.7]} 38. Rf1 {[%clk 0:01:51.3]} 38... Kd7 {[%clk 0:01:54.5]} 39. b4
{[%clk 0:01:46.8]} 39... e5 {[%clk 0:01:47.7]} 40. dxe5 {[%clk 0:01:47.3]} 40...
fxe5 {[%clk 0:01:49.6]} 41. Bg5 {[%clk 0:01:48.3]} 41... Ke6 {[%clk 0:01:51.2]}
42. Rb1 {[%clk 0:01:46.9]} 42... Rg7 {[%clk 0:01:49.9]} 43. Rb2 {[%clk
0:01:12.8]} 43... a4 {[%clk 0:01:49.3]} 44. b5 {[%clk 0:01:07.1]} 44... Rxc5
{[%clk 0:01:43.1]} 45. bxc6 {[%clk 0:01:08.1]} 45... Rxc6 {[%clk 0:01:40.9]} 46.
Rb4 {[%clk 0:01:07.9]} 46... Ra6 {[%clk 0:01:41.9]} 47. Rb5 {[%clk 0:01:05.1]}
47... b6 {[%clk 0:01:35.2]} 48. Bd8 {[%clk 0:01:04.9]} 48... Rb7 {[%clk
0:01:35.7]} 49. Kg2 {[%clk 0:00:57.4]} 49... Ra5 {[%clk 0:01:35.9]} 50. Rb4
{[%clk 0:00:52.4]} 50... Ra8 {[%clk 0:01:32.4]} 51. Bg5 {[%clk 0:00:47.4]} 51...
b5 {[%clk 0:01:33.5]} 52. Kf2 {[%clk 0:00:46.1]} 52... Rc8 {[%clk 0:01:34.5]}
53. Ke2 {[%clk 0:00:47]} 53... Rc2+ {[%clk 0:01:34.8]} 54. Kd1 {[%clk
0:00:48.3]} 54... Ra2 {[%clk 0:01:35.7]} 55. Rb1 {[%clk 0:00:47.1]} 55... Rd7+
{[%clk 0:01:29.3]} 56. Ke1 {[%clk 0:00:48.1]} 56... Rc7 {[%clk 0:01:30.9]} 57.
g4 {[%clk 0:00:47.2]} 57... fxg4 {[%clk 0:01:30.8]} 58. Kd1 {[%clk 0:00:48.2]}
58... g3 {[%clk 0:01:31.2]} 59. Rxb5 {[%clk 0:00:48.4]} 59... g2 {[%clk
0:01:30]} 60. Rb6+ {[%clk 0:00:49.9]} 60... Kf5 {[%clk 0:01:31]} 61. Rf6+ {[%clk
0:00:50.1]} 61... Kg4 {[%clk 0:01:32.5]} 0-1

[Event "*** Titled Tuesday Blitz"]
[Site "Chess.com"]
[Date "2020.02.04"]
[Round "4"]
[White "killer311"]
[Black "hypert"]
[Result "0-1"]
[WhiteElo "2229"]
[BlackElo "2462"]
[TimeControl "180+2"]
[EndTime "9:51:15 PST"]
[Termination "hypert won by resignation"]

1. d4 {[%clk 0:03:01.9]} 1... Nf6 {[%clk 0:03:00.9]} 2. Nf3 {[%clk 0:03:02.3]}
2... d5 {[%clk 0:03:01.6]} 3. c4 {[%clk 0:03:02.2]} 3... e6 {[%clk 0:03:03.1]}
4. e3 {[%clk 0:03:02.6]} 4... Bb4+ {[%clk 0:03:03.9]} 5. Nbd2 {[%clk 0:03:01.6]}
5... c5 {[%clk 0:02:59.7]} 6. cxd5 {[%clk 0:02:59.9]} 6... exd5 {[%clk
0:02:58.7]} 7. Bd3 {[%clk 0:02:58.8]} 7... c4 {[%clk 0:02:54.9]} 8. Bc2 {[%clk
0:02:41.8]} 8... O-O {[%clk 0:02:52.7]} 9. O-O {[%clk 0:02:42.7]} 9... Bg4
{[%clk 0:02:53.6]} 10. h3 {[%clk 0:02:41.7]} 10... Bh5 {[%clk 0:02:54.5]} 11. a3
{[%clk 0:02:42]} 11... Ba5 {[%clk 0:02:55.3]} 12. b4 {[%clk 0:02:38.4]} 12...
Bc7 {[%clk 0:02:52.9]} 13. Bb2 {[%clk 0:02:36.5]} 13... Nc6 {[%clk 0:02:52.3]}
14. Rc1 {[%clk 0:02:36.6]} 14... b5 {[%clk 0:02:52.9]} 15. e4 {[%clk 0:02:15.9]}
15... dxe4 {[%clk 0:02:45.9]} 16. Nxe4 {[%clk 0:02:16.4]} 16... Nd5 {[%clk
0:02:40.1]} 17. Nc3 {[%clk 0:01:39.3]} 17... Nxc3 {[%clk 0:02:24.7]} 18. Bxc3
{[%clk 0:01:41.2]} 18... Qd5 {[%clk 0:02:25.8]} 19. Re1 {[%clk 0:01:32.5]} 19...
Rfe8 {[%clk 0:02:18]} 20. Re3 {[%clk 0:01:16.5]} 20... Bf4 {[%clk 0:01:56.7]}
21. Rxe8+ {[%clk 0:01:13.4]} 21... Rxe8 {[%clk 0:01:58.6]} 22. Rb1 {[%clk
0:00:46.1]} 22... Bc7 {[%clk 0:01:59.1]} 23. g4 {[%clk 0:00:42.1]} 23... Bg6
{[%clk 0:01:59.4]} 24. Nd2 {[%clk 0:00:40.7]} 24... Bxc2 {[%clk 0:01:42.7]} 25.
Qxc2 {[%clk 0:00:40.9]} 25... Nxd4 {[%clk 0:01:43.4]} 26. Bxd4 {[%clk
0:00:40.1]} 26... Qxd4 {[%clk 0:01:44.6]} 27. Nf3 {[%clk 0:00:37.9]} 27... Qf4
{[%clk 0:01:41.6]} 28. Kg2 {[%clk 0:00:38.3]} 28... h5 {[%clk 0:01:35.9]} 29.
gxh5 {[%clk 0:00:37.5]} 29... Bb6 {[%clk 0:01:25.9]} 30. Rd1 {[%clk 0:00:37.6]}
30... Rd8 {[%clk 0:01:04.2]} 31. Rxd8+ {[%clk 0:00:36.9]} 31... Bxd8 {[%clk
0:01:06.1]} 32. Qd1 {[%clk 0:00:37.8]} 32... Bf6 {[%clk 0:00:59.2]} 33. Qd7
{[%clk 0:00:33.8]} 33... a6 {[%clk 0:00:57.2]} 34. Qe8+ {[%clk 0:00:34.2]} 34...
Kh7 {[%clk 0:00:57.8]} 35. Qxf7 {[%clk 0:00:35.5]} 35... Qf5 {[%clk 0:00:52.7]}
36. Qc7 {[%clk 0:00:24.4]} 36... c3 {[%clk 0:00:52.3]} 37. Qc6 {[%clk
0:00:23.2]} 37... Qxh5 {[%clk 0:00:48.4]} 38. Qe4+ {[%clk 0:00:20.6]} 38... Qg6+
{[%clk 0:00:47.3]} 39. Qxg6+ {[%clk 0:00:21.7]} 39... Kxg6 {[%clk 0:00:49.2]}
40. Kf1 {[%clk 0:00:23.1]} 40... c2 {[%clk 0:00:49.5]} 0-1

[Event "*** Titled Tuesday Blitz"]
[Site "Chess.com"]
[Date "2020.02.04"]
[Round "4"]
[White "LastGladiator1"]
[Black "gena217"]
[Result "1-0"]
[WhiteElo "2837"]
[BlackElo "2996"]
[TimeControl "180+2"]
[EndTime "9:51:19 PST"]
[Termination "LastGladiator1 won by resignation"]

1. d4 {[%clk 0:03:01.9]} 1... Nf6 {[%clk 0:03:00.6]} 2. c4 {[%clk 0:02:59.2]}
2... e6 {[%clk 0:03:00.7]} 3. Nc3 {[%clk 0:02:58.6]} 3... Bb4 {[%clk 0:03:02.1]}
4. f3 {[%clk 0:02:56.7]} 4... O-O {[%clk 0:02:55.3]} 5. a3 {[%clk 0:02:51.6]}
5... Bxc3+ {[%clk 0:02:55.1]} 6. bxc3 {[%clk 0:02:52.7]} 6... Ne8 {[%clk
0:02:53.7]} 7. e4 {[%clk 0:02:51.6]} 7... d6 {[%clk 0:02:46.3]} 8. Ne2 {[%clk
0:02:44.9]} 8... c5 {[%clk 0:02:39.1]} 9. h4 {[%clk 0:02:34.9]} 9... Nc6 {[%clk
0:02:37]} 10. Kf2 {[%clk 0:02:20.8]} 10... f5 {[%clk 0:02:31.2]} 11. exf5 {[%clk
0:02:17.9]} 11... Rxf5 {[%clk 0:01:50.1]} 12. Rb1 {[%clk 0:02:15.8]} 12... b6
{[%clk 0:01:43.3]} 13. Kg1 {[%clk 0:01:57.4]} 13... Rf7 {[%clk 0:01:29.2]} 14.
Ng3 {[%clk 0:01:48.6]} 14... Nf6 {[%clk 0:01:29.7]} 15. Rb2 {[%clk 0:01:40.6]}
15... Ba6 {[%clk 0:01:24.5]} 16. h5 {[%clk 0:01:36.3]} 16... h6 {[%clk
0:01:22.1]} 17. Rh4 {[%clk 0:01:30.5]} 17... Qd7 {[%clk 0:01:17.6]} 18. Qe1
{[%clk 0:01:21.7]} 18... e5 {[%clk 0:01:14.3]} 19. d5 {[%clk 0:01:20.3]} 19...
Na5 {[%clk 0:01:14.8]} 20. Ne4 {[%clk 0:01:20.8]} 20... Raf8 {[%clk 0:01:07.5]}
21. a4 {[%clk 0:01:12.8]} 21... Nxe4 {[%clk 0:01:06.5]} 22. Qxe4 {[%clk
0:01:09.8]} 22... Qxa4 {[%clk 0:01:00.1]} 23. Bxh6 {[%clk 0:01:04.5]} 23... gxh6
{[%clk 0:00:52.9]} 24. Rg4+ {[%clk 0:00:54.8]} 24... Rg7 {[%clk 0:00:31.7]} 25.
Rxg7+ {[%clk 0:00:45.8]} 25... Kxg7 {[%clk 0:00:33.6]} 26. Qg6+ {[%clk
0:00:46.8]} 26... Kh8 {[%clk 0:00:35.2]} 27. Qxh6+ {[%clk 0:00:35.1]} 27... Kg8
{[%clk 0:00:34.8]} 28. Qg5+ {[%clk 0:00:20.3]} 28... Kh8 {[%clk 0:00:32.3]} 29.
Qh6+ {[%clk 0:00:14.1]} 29... Kg8 {[%clk 0:00:33.3]} 30. Qg6+ {[%clk 0:00:14.9]}
30... Kh8 {[%clk 0:00:34.3]} 31. Qxd6 {[%clk 0:00:15.1]} 31... Qe8 {[%clk
0:00:32.7]} 32. Qh6+ {[%clk 0:00:10.3]} 32... Kg8 {[%clk 0:00:33.4]} 33. Qg5+
{[%clk 0:00:12.2]} 33... Kh8 {[%clk 0:00:29.8]} 34. Re2 {[%clk 0:00:13.3]} 34...
Qf7 {[%clk 0:00:21.6]} 35. Qh6+ {[%clk 0:00:09.3]} 35... Kg8 {[%clk 0:00:22.9]}
36. Rxe5 {[%clk 0:00:10.9]} 36... Bc8 {[%clk 0:00:24.6]} 37. Rg5+ {[%clk
0:00:11.8]} 1-0

[Event "*** Titled Tuesday Blitz"]
[Site "Chess.com"]
[Date "2020.02.04"]
[Round "4"]
[White "KRASAVCHIK2002"]
[Black "DevikBronstein"]
[Result "0-1"]
[WhiteElo "2514"]
[BlackElo "2724"]
[TimeControl "180+2"]
[EndTime "9:51:26 PST"]
[Termination "DevikBronstein won by resignation"]

1. e4 {[%clk 0:02:58.3]} 1... c5 {[%clk 0:03:00.4]} 2. Nf3 {[%clk 0:02:58.1]}
2... d6 {[%clk 0:03:01.8]} 3. Bb5+ {[%clk 0:02:57.3]} 3... Bd7 {[%clk
0:03:02.1]} 4. Bxd7+ {[%clk 0:02:56.8]} 4... Nxd7 {[%clk 0:03:04]} 5. O-O {[%clk
0:02:58.6]} 5... Ngf6 {[%clk 0:03:04.5]} 6. Qe2 {[%clk 0:02:55]} 6... Rc8 {[%clk
0:03:04.9]} 7. c3 {[%clk 0:02:43.4]} 7... e6 {[%clk 0:03:05.6]} 8. d4 {[%clk
0:02:42.5]} 8... cxd4 {[%clk 0:03:07.5]} 9. cxd4 {[%clk 0:02:39.5]} 9... d5
{[%clk 0:03:08.5]} 10. e5 {[%clk 0:02:41.1]} 10... Ne4 {[%clk 0:03:07.1]} 11.
Be3 {[%clk 0:02:41.2]} 11... Be7 {[%clk 0:03:03.2]} 12. Ne1 {[%clk 0:02:39.7]}
12... f5 {[%clk 0:03:03.5]} 13. Nd3 {[%clk 0:02:38.3]} 13... O-O {[%clk
0:02:49.1]} 14. f3 {[%clk 0:02:37.1]} 14... Ng5 {[%clk 0:02:49.9]} 15. Nc3
{[%clk 0:02:38.6]} 15... Nf7 {[%clk 0:02:45.2]} 16. Rfc1 {[%clk 0:02:39.1]}
16... Nb6 {[%clk 0:02:35]} 17. b3 {[%clk 0:02:39.3]} 17... Ba3 {[%clk
0:02:34.3]} 18. Rc2 {[%clk 0:02:30.5]} 18... a6 {[%clk 0:02:27.3]} 19. Qf2
{[%clk 0:02:16.6]} 19... Rc6 {[%clk 0:02:25.7]} 20. Nb1 {[%clk 0:02:08.2]} 20...
Rxc2 {[%clk 0:02:26.3]} 21. Qxc2 {[%clk 0:02:10.1]} 21... Be7 {[%clk 0:02:27.8]}
22. Nc3 {[%clk 0:02:10.8]} 22... Qc7 {[%clk 0:02:21.7]} 23. Qb2 {[%clk
0:02:05.8]} 23... Rc8 {[%clk 0:02:22.2]} 24. Rc1 {[%clk 0:02:07.7]} 24... Qd7
{[%clk 0:02:20.3]} 25. g3 {[%clk 0:02:02.6]} 25... Rc6 {[%clk 0:02:20.7]} 26. a4
{[%clk 0:01:50.9]} 26... Qc7 {[%clk 0:02:20.5]} 27. Kg2 {[%clk 0:01:52.8]} 27...
Nd7 {[%clk 0:02:15.5]} 28. h4 {[%clk 0:01:52.3]} 28... Nf8 {[%clk 0:02:07.8]}
29. Nf2 {[%clk 0:01:41.9]} 29... Bb4 {[%clk 0:02:07]} 30. Ne2 {[%clk 0:01:41.6]}
30... Rxc1 {[%clk 0:02:07.6]} 31. Qxc1 {[%clk 0:01:43.5]} 31... Qxc1 {[%clk
0:02:05.2]} 32. Nxc1 {[%clk 0:01:45.3]} 32... Nd8 {[%clk 0:02:06.8]} 33. Ncd3
{[%clk 0:01:47.2]} 33... Nc6 {[%clk 0:02:04.2]} 34. Nxb4 {[%clk 0:01:47]} 34...
Nxb4 {[%clk 0:02:06.1]} 35. Nd1 {[%clk 0:01:44.8]} 35... Nd7 {[%clk 0:02:04.4]}
36. Kf1 {[%clk 0:01:37.3]} 36... Nc2 {[%clk 0:01:50.5]} 37. Bg1 {[%clk
0:01:32.8]} 37... Na1 {[%clk 0:01:46.4]} 38. b4 {[%clk 0:01:33.3]} 38... Nc2
{[%clk 0:01:47.2]} 39. b5 {[%clk 0:01:34.1]} 39... axb5 {[%clk 0:01:48.4]} 40.
axb5 {[%clk 0:01:33.9]} 40... Kf7 {[%clk 0:01:38.7]} 41. Ke2 {[%clk 0:01:34.5]}
41... Ke8 {[%clk 0:01:37.7]} 42. Kd3 {[%clk 0:01:35.9]} 42... Na3 {[%clk
0:01:38.3]} 43. Nc3 {[%clk 0:01:35.1]} 43... Kd8 {[%clk 0:01:39.6]} 44. Kd2
{[%clk 0:01:34.9]} 44... Kc7 {[%clk 0:01:39.8]} 45. Kc1 {[%clk 0:01:19.8]} 45...
Kb6 {[%clk 0:01:40.5]} 46. Kb2 {[%clk 0:01:21.7]} 46... Nxb5 {[%clk 0:01:41.5]}
47. Na4+ {[%clk 0:01:23.1]} 47... Kc6 {[%clk 0:01:42.3]} 48. Kb3 {[%clk
0:01:24.6]} 48... b6 {[%clk 0:01:40]} 49. Kb4 {[%clk 0:01:26.5]} 49... Nc7
{[%clk 0:01:40.9]} 50. Nc3 {[%clk 0:01:27.3]} 50... Nb8 {[%clk 0:01:38.7]} 51.
Be3 {[%clk 0:01:26.2]} 51... Nba6+ {[%clk 0:01:39.2]} 52. Kb3 {[%clk 0:01:26]}
52... Nb5 {[%clk 0:01:36.2]} 53. Nxb5 {[%clk 0:01:24.1]} 53... Kxb5 {[%clk
0:01:37.1]} 54. Bg5 {[%clk 0:01:00.8]} 54... Nb8 {[%clk 0:01:37.5]} 55. h5
{[%clk 0:00:53.5]} 55... Nc6 {[%clk 0:01:38]} 0-1